[Event "Early-Titled-Tuesday-Blitz-March-12-2024"]
[Site "Chess.com"]
[Date "2024.03.12"]
[Round "6"]
[White "NikitaShnadrygin"]
[Black "Koalaskakistis"]
[Result "0-1"]
[WhiteElo "2666"]
[BlackElo "2534"]
[TimeControl "180+1"]
[EndTime "9:06:49 PDT"]
[Termination "Koalaskakistis won by resignation"]

1. e4 {[%clk 0:03:00]} 1... c5 {[%clk 0:02:58.4]} 2. Nf3 {[%clk 0:02:57.3]} 2...
d6 {[%clk 0:02:58.5]} 3. d4 {[%clk 0:02:56.8]} 3... cxd4 {[%clk 0:02:59]} 4.
Nxd4 {[%clk 0:02:57.7]} 4... Nf6 {[%clk 0:02:59.6]} 5. Nc3 {[%clk 0:02:57.9]}
5... a6 {[%clk 0:03:00]} 6. f3 {[%clk 0:02:58.2]} 6... e5 {[%clk 0:03:00.3]} 7.
Nb3 {[%clk 0:02:58.3]} 7... Be6 {[%clk 0:03:00.8]} 8. Be3 {[%clk 0:02:58.1]}
8... Nbd7 {[%clk 0:03:01.3]} 9. Qd2 {[%clk 0:02:55.3]} 9... h5 {[%clk
0:03:01.9]} 10. Nd5 {[%clk 0:02:54.6]} 10... Bxd5 {[%clk 0:03:01.8]} 11. exd5
{[%clk 0:02:55.5]} 11... g6 {[%clk 0:03:02.3]} 12. Na5 {[%clk 0:02:53.2]} 12...
Qc7 {[%clk 0:03:01.9]} 13. c4 {[%clk 0:02:53.2]} 13... Bg7 {[%clk 0:03:02]} 14.
Be2 {[%clk 0:02:52.5]} 14... O-O {[%clk 0:03:02.5]} 15. O-O {[%clk 0:02:52.7]}
15... e4 {[%clk 0:03:01.8]} 16. f4 {[%clk 0:02:30.7]} 16... Ng4 {[%clk
0:02:52.6]} 17. Bxg4 {[%clk 0:02:30.5]} 17... hxg4 {[%clk 0:02:53.5]} 18. Rac1
{[%clk 0:02:00.4]} 18... Nc5 {[%clk 0:02:52.2]} 19. Rc2 {[%clk 0:01:50.5]} 19...
Nd3 {[%clk 0:02:49.1]} 20. b4 {[%clk 0:01:47.5]} 20... f5 {[%clk 0:02:21.8]} 21.
Nb3 {[%clk 0:01:43.1]} 21... Rae8 {[%clk 0:02:06.3]} 22. Nc1 {[%clk 0:01:35.8]}
22... Nxc1 {[%clk 0:02:01.5]} 23. Rfxc1 {[%clk 0:01:36.7]} 23... Qf7 {[%clk
0:01:28.1]} 24. c5 {[%clk 0:01:22.4]} 24... g5 {[%clk 0:01:26.9]} 25. g3 {[%clk
0:00:58.9]} 25... gxf4 {[%clk 0:01:24.2]} 26. gxf4 {[%clk 0:00:59.8]} 26... dxc5
{[%clk 0:01:21.7]} 27. Bxc5 {[%clk 0:00:41.3]} 27... e3 {[%clk 0:01:17.7]} 28.
Qd3 {[%clk 0:00:40.6]} 28... e2 {[%clk 0:01:05.2]} 29. Re1 {[%clk 0:00:24.9]}
29... Re4 {[%clk 0:00:45.6]} 30. Bxf8 {[%clk 0:00:23.6]} 30... Bd4+ {[%clk
0:00:45.2]} 31. Kh1 {[%clk 0:00:19.1]} 31... Qxd5 {[%clk 0:00:45.3]} 32. Qb3
{[%clk 0:00:12.6]} 32... Qxb3 {[%clk 0:00:38.6]} 33. axb3 {[%clk 0:00:13.5]}
33... Kxf8 {[%clk 0:00:39.1]} 34. Rcxe2 {[%clk 0:00:13]} 34... Rxf4 {[%clk
0:00:39.7]} 35. Kg2 {[%clk 0:00:13.5]} 35... Rf3 {[%clk 0:00:37.2]} 36. Rf1
{[%clk 0:00:12.7]} 36... Rxb3 {[%clk 0:00:33]} 37. Rxf5+ {[%clk 0:00:12.3]}
37... Kg7 {[%clk 0:00:33.3]} 38. Rg5+ {[%clk 0:00:08.5]} 38... Kf6 {[%clk
0:00:33.5]} 39. Rxg4 {[%clk 0:00:08.7]} 39... Be5 {[%clk 0:00:32.3]} 40. Rf2+
{[%clk 0:00:07.3]} 40... Ke6 {[%clk 0:00:31.1]} 41. Re2 {[%clk 0:00:07]} 41...
Kf5 {[%clk 0:00:30]} 42. Rc4 {[%clk 0:00:06.7]} 42... b6 {[%clk 0:00:27.8]} 43.
Rce4 {[%clk 0:00:04.8]} 43... Bd6 {[%clk 0:00:24.3]} 44. Rd4 {[%clk 0:00:03.7]}
44... Bxb4 {[%clk 0:00:22]} 45. Rd5+ {[%clk 0:00:04]} 45... Kf4 {[%clk
0:00:22.1]} 46. Rd8 {[%clk 0:00:02.5]} 46... Bc5 {[%clk 0:00:21]} 47. Rd7 {[%clk
0:00:02.8]} 47... a5 {[%clk 0:00:20.6]} 48. Rf7+ {[%clk 0:00:03]} 48... Kg5
{[%clk 0:00:21.3]} 49. Rf3 {[%clk 0:00:02.3]} 49... Rb4 {[%clk 0:00:15.3]} 50.
Rg3+ {[%clk 0:00:02.1]} 50... Kf5 {[%clk 0:00:14.2]} 51. Rf3+ {[%clk 0:00:02.7]}
51... Kg5 {[%clk 0:00:14.7]} 52. Kg3 {[%clk 0:00:03.2]} 52... Bd6+ {[%clk
0:00:14.6]} 53. Kg2 {[%clk 0:00:03.1]} 53... a4 {[%clk 0:00:13.1]} 54. Kf1
{[%clk 0:00:03.4]} 54... a3 {[%clk 0:00:12.3]} 55. Rg2+ {[%clk 0:00:03.8]} 55...
Kh4 {[%clk 0:00:10.7]} 56. Rf7 {[%clk 0:00:03]} 56... Rb1+ {[%clk 0:00:11.2]}
57. Ke2 {[%clk 0:00:03.4]} 57... Rb2+ {[%clk 0:00:11.7]} 58. Kf3 {[%clk
0:00:03.9]} 58... Rxg2 {[%clk 0:00:09.7]} 59. Kxg2 {[%clk 0:00:04.8]} 59... b5
{[%clk 0:00:08.8]} 60. Rb7 {[%clk 0:00:04.9]} 60... b4 {[%clk 0:00:08.3]} 61.
Kf3 {[%clk 0:00:04.5]} 61... a2 {[%clk 0:00:08.8]} 0-1

[Event "Early-Titled-Tuesday-Blitz-March-12-2024"]
[Site "Chess.com"]
[Date "2024.03.12"]
[Round "6"]
[White "atbenina64"]
[Black "laziestwin"]
[Result "1-0"]
[WhiteElo "2742"]
[BlackElo "2580"]
[TimeControl "180+1"]
[EndTime "9:06:53 PDT"]
[Termination "atbenina64 won by resignation"]

1. Nf3 {[%clk 0:03:00.9]} 1... Nf6 {[%clk 0:02:54.4]} 2. c4 {[%clk 0:03:01.3]}
2... g6 {[%clk 0:02:53.3]} 3. Nc3 {[%clk 0:03:01.7]} 3... Bg7 {[%clk 0:02:53.9]}
4. e4 {[%clk 0:03:02.1]} 4... c5 {[%clk 0:02:52.9]} 5. d4 {[%clk 0:03:02]} 5...
cxd4 {[%clk 0:02:53]} 6. Nxd4 {[%clk 0:03:02.9]} 6... Nc6 {[%clk 0:02:52.3]} 7.
Be3 {[%clk 0:03:02.4]} 7... Ng4 {[%clk 0:02:39.3]} 8. Qxg4 {[%clk 0:03:02.3]}
8... Nxd4 {[%clk 0:02:39.2]} 9. Qd1 {[%clk 0:03:02.7]} 9... e5 {[%clk
0:02:37.1]} 10. Bd3 {[%clk 0:03:01]} 10... d6 {[%clk 0:02:37.1]} 11. O-O {[%clk
0:02:58.3]} 11... O-O {[%clk 0:02:37.7]} 12. Rc1 {[%clk 0:02:56.7]} 12... Be6
{[%clk 0:02:38.2]} 13. Nd5 {[%clk 0:02:53.4]} 13... Rc8 {[%clk 0:02:36.9]} 14.
Qd2 {[%clk 0:02:46.8]} 14... Bxd5 {[%clk 0:02:30]} 15. cxd5 {[%clk 0:02:47.7]}
15... Qb6 {[%clk 0:02:23.6]} 16. Rc3 {[%clk 0:02:43.1]} 16... Rc5 {[%clk
0:02:19.1]} 17. Rfc1 {[%clk 0:02:31.4]} 17... Rfc8 {[%clk 0:02:18.4]} 18. b4
{[%clk 0:02:26.6]} 18... Rxc3 {[%clk 0:02:07.8]} 19. Rxc3 {[%clk 0:02:27.5]}
19... Qd8 {[%clk 0:01:36.5]} 20. Qc1 {[%clk 0:02:13.4]} 20... Rxc3 {[%clk
0:01:35.9]} 21. Qxc3 {[%clk 0:02:14.3]} 21... h5 {[%clk 0:01:36.3]} 22. g3
{[%clk 0:02:01.9]} 22... h4 {[%clk 0:01:33.7]} 23. Kg2 {[%clk 0:02:01.7]} 23...
Kh7 {[%clk 0:01:31.2]} 24. Qc1 {[%clk 0:01:23.1]} 24... Qd7 {[%clk 0:01:28.9]}
25. Qd1 {[%clk 0:01:16.6]} 25... Bf6 {[%clk 0:00:50.6]} 26. a4 {[%clk
0:00:43.3]} 26... Kg7 {[%clk 0:00:47.1]} 27. b5 {[%clk 0:00:38.3]} 27... Qc8
{[%clk 0:00:44.6]} 28. Qc1 {[%clk 0:00:33.1]} 28... h3+ {[%clk 0:00:36.9]} 29.
Kg1 {[%clk 0:00:16.6]} 29... Nf3+ {[%clk 0:00:33.7]} 30. Kh1 {[%clk 0:00:15.1]}
30... Qg4 {[%clk 0:00:09.3]} 31. Qd1 {[%clk 0:00:15.4]} 31... Nxh2 {[%clk
0:00:08.7]} 32. Qxg4 {[%clk 0:00:15.9]} 32... Nxg4 {[%clk 0:00:09.6]} 33. Bxa7
{[%clk 0:00:16.8]} 33... Bd8 {[%clk 0:00:07.5]} 34. Bf1 {[%clk 0:00:14.7]} 34...
b6 {[%clk 0:00:05.9]} 35. f3 {[%clk 0:00:13.7]} 35... Nf2+ {[%clk 0:00:04.5]}
36. Kg1 {[%clk 0:00:13.9]} 36... Nd1 {[%clk 0:00:04.3]} 37. a5 {[%clk
0:00:10.3]} 37... bxa5 {[%clk 0:00:02.7]} 38. b6 {[%clk 0:00:11.2]} 38... Nc3
{[%clk 0:00:02.4]} 39. b7 {[%clk 0:00:11.8]} 39... Bc7 {[%clk 0:00:03]} 40. b8=Q
{[%clk 0:00:10.8]} 40... Bxb8 {[%clk 0:00:03.5]} 41. Bxb8 {[%clk 0:00:11.7]}
41... f5 {[%clk 0:00:02.7]} 42. Bxd6 {[%clk 0:00:12.1]} 42... Kf6 {[%clk
0:00:02.2]} 43. exf5 {[%clk 0:00:10.5]} 43... gxf5 {[%clk 0:00:03.1]} 44. f4
{[%clk 0:00:10.7]} 44... Nxd5 {[%clk 0:00:03.4]} 45. Bxe5+ {[%clk 0:00:10.9]}
45... Kg6 {[%clk 0:00:04]} 46. Bxh3 {[%clk 0:00:11.8]} 46... a4 {[%clk 0:00:04]}
47. Bd6 {[%clk 0:00:09.1]} 47... Ne3 {[%clk 0:00:03.8]} 48. Kf2 {[%clk
0:00:08.7]} 48... Nc4 {[%clk 0:00:03.9]} 49. Bc5 {[%clk 0:00:09.1]} 49... a3
{[%clk 0:00:04.5]} 50. Bf1 {[%clk 0:00:09.1]} 50... a2 {[%clk 0:00:03.7]} 51.
Bd4 {[%clk 0:00:09.8]} 51... Na3 {[%clk 0:00:03.5]} 52. Bd3 {[%clk 0:00:09.4]}
52... Nb1 {[%clk 0:00:04.1]} 53. Ke3 {[%clk 0:00:08.5]} 53... Kh5 {[%clk
0:00:04]} 54. Bxf5 {[%clk 0:00:08.4]} 54... Na3 {[%clk 0:00:04.2]} 55. g4+
{[%clk 0:00:08.7]} 55... Kh4 {[%clk 0:00:03.9]} 56. Kd3 {[%clk 0:00:07.6]} 56...
Nb5 {[%clk 0:00:02.1]} 57. Bf6+ {[%clk 0:00:08.3]} 57... Kg3 {[%clk 0:00:01.8]}
58. Kc2 {[%clk 0:00:09.1]} 58... Nd6 {[%clk 0:00:02.3]} 59. Be6 {[%clk
0:00:05.7]} 59... Kxf4 {[%clk 0:00:02.9]} 60. g5 {[%clk 0:00:05.8]} 60... Nf5
{[%clk 0:00:03.3]} 61. Bxf5 {[%clk 0:00:06]} 61... Kxf5 {[%clk 0:00:04.1]} 62.
Kb2 {[%clk 0:00:06]} 62... Kg6 {[%clk 0:00:05]} 63. Kxa2 {[%clk 0:00:06.4]}
63... Kf7 {[%clk 0:00:05.9]} 64. Kb3 {[%clk 0:00:07.3]} 1-0

[Event "Early-Titled-Tuesday-Blitz-March-12-2024"]
[Site "Chess.com"]
[Date "2024.03.12"]
[Round "6"]
[White "kpio91"]
[Black "Cryptinz"]
[Result "0-1"]
[WhiteElo "2830"]
[BlackElo "2519"]
[TimeControl "180+1"]
[EndTime "9:06:53 PDT"]
[Termination "Cryptinz won on time"]

1. c4 {[%clk 0:03:00.9]} 1... c6 {[%clk 0:02:49.3]} 2. b3 {[%clk 0:02:57.5]}
2... d5 {[%clk 0:02:45.2]} 3. Bb2 {[%clk 0:02:58.1]} 3... Nf6 {[%clk 0:02:44.8]}
4. g3 {[%clk 0:02:58.8]} 4... Bf5 {[%clk 0:02:42.9]} 5. Bg2 {[%clk 0:02:59.1]}
5... e6 {[%clk 0:02:42.6]} 6. Nf3 {[%clk 0:02:59.2]} 6... Nbd7 {[%clk
0:02:42.3]} 7. O-O {[%clk 0:02:59.4]} 7... h6 {[%clk 0:02:40.1]} 8. d3 {[%clk
0:02:59.5]} 8... Be7 {[%clk 0:02:39.7]} 9. Nbd2 {[%clk 0:03:00.1]} 9... O-O
{[%clk 0:02:39.5]} 10. Re1 {[%clk 0:03:00.7]} 10... Bh7 {[%clk 0:02:36.2]} 11.
a3 {[%clk 0:02:57.7]} 11... a5 {[%clk 0:02:34.5]} 12. Ra2 {[%clk 0:02:57.8]}
12... Ne8 {[%clk 0:02:23.3]} 13. Qa1 {[%clk 0:02:57]} 13... Bf6 {[%clk
0:02:23.2]} 14. d4 {[%clk 0:02:54.1]} 14... a4 {[%clk 0:02:20.1]} 15. b4 {[%clk
0:02:51]} 15... dxc4 {[%clk 0:02:17.9]} 16. Nxc4 {[%clk 0:02:50.8]} 16... Nb6
{[%clk 0:02:18.4]} 17. Nce5 {[%clk 0:02:49.5]} 17... Bc2 {[%clk 0:02:08.9]} 18.
Bc3 {[%clk 0:02:43.3]} 18... Bb3 {[%clk 0:02:05.7]} 19. Rd2 {[%clk 0:02:43.9]}
19... Nd6 {[%clk 0:02:02.2]} 20. e4 {[%clk 0:02:39.1]} 20... Ndc4 {[%clk
0:01:53.6]} 21. Rde2 {[%clk 0:02:15.4]} 21... Qc7 {[%clk 0:01:29.6]} 22. Nd3
{[%clk 0:02:11.5]} 22... Rfd8 {[%clk 0:01:19.9]} 23. Nc5 {[%clk 0:02:11.2]}
23... e5 {[%clk 0:01:15.1]} 24. dxe5 {[%clk 0:02:07.8]} 24... Be7 {[%clk
0:01:08]} 25. e6 {[%clk 0:02:07.1]} 25... f6 {[%clk 0:00:59]} 26. Nd4 {[%clk
0:02:00.9]} 26... Ne5 {[%clk 0:00:49.6]} 27. Nf5 {[%clk 0:01:57.1]} 27... Bxc5
{[%clk 0:00:44.7]} 28. bxc5 {[%clk 0:01:56.9]} 28... Nbc4 {[%clk 0:00:44.9]} 29.
e7 {[%clk 0:01:11.2]} 29... Rd7 {[%clk 0:00:42.2]} 30. f4 {[%clk 0:01:10.4]}
30... Nd3 {[%clk 0:00:29.8]} 31. Bxf6 {[%clk 0:01:06.2]} 31... Nxe1 {[%clk
0:00:27.3]} 32. Rxe1 {[%clk 0:01:03.7]} 32... Re8 {[%clk 0:00:18.3]} 33. Bh4
{[%clk 0:00:46.3]} 33... Rexe7 {[%clk 0:00:16]} 34. Bxe7 {[%clk 0:00:45.5]}
34... Rxe7 {[%clk 0:00:16.9]} 35. Nxe7+ {[%clk 0:00:45.7]} 35... Qxe7 {[%clk
0:00:17.8]} 36. Qd4 {[%clk 0:00:36.4]} 36... Nxa3 {[%clk 0:00:18.3]} 37. e5
{[%clk 0:00:36.9]} 37... Nb5 {[%clk 0:00:18]} 38. Qe3 {[%clk 0:00:35.6]} 38...
Bd5 {[%clk 0:00:17.1]} 39. Bxd5+ {[%clk 0:00:30.1]} 39... cxd5 {[%clk 0:00:18]}
40. e6 {[%clk 0:00:30.9]} 40... a3 {[%clk 0:00:16.5]} 41. Qd3 {[%clk 0:00:27.3]}
41... Qxc5+ {[%clk 0:00:16.2]} 42. Kg2 {[%clk 0:00:27.7]} 42... Nc7 {[%clk
0:00:14.5]} 43. e7 {[%clk 0:00:27.8]} 43... Ne8 {[%clk 0:00:14.9]} 44. Qg6
{[%clk 0:00:24.4]} 44... Qc6 {[%clk 0:00:14.7]} 45. f5 {[%clk 0:00:14]} 45... a2
{[%clk 0:00:12.4]} 46. Qe6+ {[%clk 0:00:08.4]} 46... Qxe6 {[%clk 0:00:12]} 47.
fxe6 {[%clk 0:00:09.3]} 47... g6 {[%clk 0:00:08.4]} 48. Ra1 {[%clk 0:00:08.7]}
48... Kg7 {[%clk 0:00:08.7]} 49. Rxa2 {[%clk 0:00:09.3]} 49... Kf6 {[%clk
0:00:09.6]} 50. Ra8 {[%clk 0:00:06.7]} 50... Kxe7 {[%clk 0:00:09.6]} 51. Kf3
{[%clk 0:00:06.2]} 51... Nd6 {[%clk 0:00:09.9]} 52. Rg8 {[%clk 0:00:06.2]} 52...
g5 {[%clk 0:00:09.8]} 53. Rg6 {[%clk 0:00:06.2]} 53... b5 {[%clk 0:00:07.1]} 54.
Rxh6 {[%clk 0:00:06.5]} 54... b4 {[%clk 0:00:07.1]} 55. Ke2 {[%clk 0:00:06.5]}
55... b3 {[%clk 0:00:07.2]} 56. Kd2 {[%clk 0:00:05]} 56... b2 {[%clk 0:00:07.6]}
57. Kc2 {[%clk 0:00:05.3]} 57... Nc4 {[%clk 0:00:08]} 58. h4 {[%clk 0:00:03.2]}
58... gxh4 {[%clk 0:00:06.7]} 59. Rxh4 {[%clk 0:00:03.2]} 59... Kxe6 {[%clk
0:00:05.5]} 60. Rg4 {[%clk 0:00:02.9]} 60... Ne3+ {[%clk 0:00:05.3]} 0-1

[Event "Early-Titled-Tuesday-Blitz-March-12-2024"]
[Site "Chess.com"]
[Date "2024.03.12"]
[Round "6"]
[White "NelsonLinda"]
[Black "becemix"]
[Result "1/2-1/2"]
[WhiteElo "2617"]
[BlackElo "2465"]
[TimeControl "180+1"]
[EndTime "9:06:53 PDT"]
[Termination "Game drawn by repetition"]

1. Nf3 {[%clk 0:02:53.7]} 1... d5 {[%clk 0:02:57.3]} 2. d4 {[%clk 0:02:54.1]}
2... Nf6 {[%clk 0:02:56.4]} 3. Bg5 {[%clk 0:02:54]} 3... e6 {[%clk 0:02:52.8]}
4. Nbd2 {[%clk 0:02:52.4]} 4... Be7 {[%clk 0:02:50.6]} 5. Bxf6 {[%clk
0:02:49.9]} 5... Bxf6 {[%clk 0:02:42.3]} 6. e4 {[%clk 0:02:49.7]} 6... dxe4
{[%clk 0:02:43.2]} 7. Nxe4 {[%clk 0:02:50.6]} 7... Be7 {[%clk 0:02:42.8]} 8. Qd2
{[%clk 0:02:46.9]} 8... Bd7 {[%clk 0:02:39.5]} 9. O-O-O {[%clk 0:02:44.6]} 9...
Bc6 {[%clk 0:02:39]} 10. Bd3 {[%clk 0:02:45.2]} 10... Bxe4 {[%clk 0:02:35.9]}
11. Bxe4 {[%clk 0:02:45.3]} 11... c6 {[%clk 0:02:36.1]} 12. h4 {[%clk
0:02:36.2]} 12... Nd7 {[%clk 0:02:29.2]} 13. h5 {[%clk 0:02:36]} 13... h6 {[%clk
0:02:27.7]} 14. Kb1 {[%clk 0:02:35.6]} 14... Qc7 {[%clk 0:02:23.7]} 15. c3
{[%clk 0:02:15.2]} 15... O-O-O {[%clk 0:02:21.9]} 16. Qe2 {[%clk 0:02:09.5]}
16... Rhe8 {[%clk 0:02:08.8]} 17. Rhe1 {[%clk 0:02:03.5]} 17... Kb8 {[%clk
0:02:08.3]} 18. g3 {[%clk 0:01:48.5]} 18... Bf6 {[%clk 0:01:56.1]} 19. Nh2
{[%clk 0:01:41.8]} 19... e5 {[%clk 0:01:09.4]} 20. d5 {[%clk 0:01:41.5]} 20...
cxd5 {[%clk 0:01:08.7]} 21. Bxd5 {[%clk 0:01:37.9]} 21... Nb6 {[%clk 0:01:04.1]}
22. Bb3 {[%clk 0:01:37.7]} 22... Rxd1+ {[%clk 0:00:45.3]} 23. Rxd1 {[%clk
0:01:37.4]} 23... e4 {[%clk 0:00:45.2]} 24. Ng4 {[%clk 0:01:36.9]} 24... Bg5
{[%clk 0:00:44.6]} 25. Ne3 {[%clk 0:01:33.2]} 25... Bxe3 {[%clk 0:00:36.3]} 26.
Qxe3 {[%clk 0:01:34.1]} 26... Qe5 {[%clk 0:00:31.8]} 27. Bxf7 {[%clk 0:01:20.1]}
27... Rf8 {[%clk 0:00:31.1]} 28. Bg6 {[%clk 0:01:13.6]} 28... Rf3 {[%clk
0:00:26.2]} 29. Qxe4 {[%clk 0:00:37.1]} 29... Qxe4+ {[%clk 0:00:25.5]} 30. Bxe4
{[%clk 0:00:38]} 30... Rxf2 {[%clk 0:00:26.1]} 31. b3 {[%clk 0:00:37.8]} 31...
Re2 {[%clk 0:00:21.1]} 32. Bf5 {[%clk 0:00:30.9]} 32... Kc7 {[%clk 0:00:20.4]}
33. g4 {[%clk 0:00:27]} 33... Kc6 {[%clk 0:00:17.4]} 34. c4 {[%clk 0:00:26.7]}
34... Kc5 {[%clk 0:00:15.9]} 35. Rc1 {[%clk 0:00:22.2]} 35... Kb4 {[%clk
0:00:13.5]} 36. Rc2 {[%clk 0:00:22.7]} 36... Rxc2 {[%clk 0:00:11.9]} 37. Kxc2
{[%clk 0:00:23.6]} 37... a5 {[%clk 0:00:12.1]} 38. Kb2 {[%clk 0:00:23.4]} 38...
a4 {[%clk 0:00:09.6]} 39. a3+ {[%clk 0:00:23.3]} 39... Kc5 {[%clk 0:00:10.1]}
40. Bd3 {[%clk 0:00:04.5]} 40... Kd4 {[%clk 0:00:10]} 41. Be2 {[%clk 0:00:04.3]}
41... Nd7 {[%clk 0:00:07.9]} 42. bxa4 {[%clk 0:00:04]} 42... b6 {[%clk
0:00:07.3]} 43. Kb3 {[%clk 0:00:03.8]} 43... Kc5 {[%clk 0:00:04.7]} 44. Kc3
{[%clk 0:00:03.8]} 44... Ne5 {[%clk 0:00:04]} 45. Kb3 {[%clk 0:00:02.9]} 45...
Nc6 {[%clk 0:00:04]} 46. Kc2 {[%clk 0:00:03.6]} 46... Ne5 {[%clk 0:00:02.6]} 47.
Kc3 {[%clk 0:00:03.9]} 47... Nc6 {[%clk 0:00:02.6]} 48. Bf3 {[%clk 0:00:04.2]}
48... Ne5 {[%clk 0:00:02.6]} 49. Be2 {[%clk 0:00:04.7]} 49... Nc6 {[%clk
0:00:02.9]} 50. Bd1 {[%clk 0:00:02.7]} 50... Nd4 {[%clk 0:00:02.5]} 51. Bb3
{[%clk 0:00:01.6]} 51... Nc6 {[%clk 0:00:02.2]} 52. Bd1 {[%clk 0:00:01.8]} 52...
Ne5 {[%clk 0:00:02.6]} 53. Be2 {[%clk 0:00:02.1]} 1/2-1/2

[Event "Early-Titled-Tuesday-Blitz-March-12-2024"]
[Site "Chess.com"]
[Date "2024.03.12"]
[Round "6"]
[White "JSPrepz"]
[Black "jaskol95"]
[Result "0-1"]
[WhiteElo "2827"]
[BlackElo "2576"]
[TimeControl "180+1"]
[EndTime "9:07:00 PDT"]
[Termination "jaskol95 won on time"]

1. e4 {[%clk 0:03:00.9]} 1... e6 {[%clk 0:02:58.2]} 2. d4 {[%clk 0:02:57.6]}
2... d5 {[%clk 0:02:58.5]} 3. e5 {[%clk 0:02:58.2]} 3... c5 {[%clk 0:02:58.5]}
4. c3 {[%clk 0:02:58.5]} 4... Qb6 {[%clk 0:02:56.9]} 5. Nf3 {[%clk 0:02:58.6]}
5... Bd7 {[%clk 0:02:57.2]} 6. Bd3 {[%clk 0:02:54.6]} 6... Bb5 {[%clk
0:02:57.1]} 7. dxc5 {[%clk 0:02:54.9]} 7... Bxc5 {[%clk 0:02:56.3]} 8. b4 {[%clk
0:02:55.5]} 8... Be7 {[%clk 0:02:54]} 9. a4 {[%clk 0:02:46.9]} 9... Bxd3 {[%clk
0:02:53.7]} 10. Qxd3 {[%clk 0:02:47.8]} 10... Nd7 {[%clk 0:02:45.1]} 11. Be3
{[%clk 0:02:46.9]} 11... Qc7 {[%clk 0:02:43.6]} 12. Bd4 {[%clk 0:02:46.6]} 12...
f6 {[%clk 0:02:42.8]} 13. exf6 {[%clk 0:02:43.6]} 13... Ngxf6 {[%clk 0:02:41.7]}
14. Kf1 {[%clk 0:02:40]} 14... e5 {[%clk 0:02:32.2]} 15. Nxe5 {[%clk 0:02:32.9]}
15... Nxe5 {[%clk 0:02:31]} 16. Qf5 {[%clk 0:02:33.3]} 16... Bd6 {[%clk
0:02:26.1]} 17. Na3 {[%clk 0:02:32.4]} 17... O-O {[%clk 0:02:24.8]} 18. Nb5
{[%clk 0:02:31.5]} 18... Ne4 {[%clk 0:01:13.2]} 19. Nxc7 {[%clk 0:02:12.6]}
19... Rxf5 {[%clk 0:01:12.8]} 20. Nxa8 {[%clk 0:02:12.9]} 20... Nc6 {[%clk
0:00:59.4]} 21. f3 {[%clk 0:02:00.5]} 21... Nxd4 {[%clk 0:00:59.1]} 22. cxd4
{[%clk 0:02:01.1]} 22... Rf8 {[%clk 0:00:55.1]} 23. Rc1 {[%clk 0:01:56.5]} 23...
Nd2+ {[%clk 0:00:54.3]} 24. Ke2 {[%clk 0:01:56.4]} 24... Nc4 {[%clk 0:00:54.8]}
25. b5 {[%clk 0:01:41.6]} 25... Rxa8 {[%clk 0:00:54]} 26. Kf2 {[%clk 0:01:36.4]}
26... Bb4 {[%clk 0:00:51.1]} 27. Rc2 {[%clk 0:01:29]} 27... Bd2 {[%clk
0:00:46.4]} 28. Rd1 {[%clk 0:01:15.9]} 28... Be3+ {[%clk 0:00:45]} 29. Kg3
{[%clk 0:01:16.1]} 29... Re8 {[%clk 0:00:41.6]} 30. h4 {[%clk 0:01:10.7]} 30...
Re6 {[%clk 0:00:41.3]} 31. Rd3 {[%clk 0:01:06.3]} 31... Rg6+ {[%clk 0:00:40.5]}
32. Kh2 {[%clk 0:01:05]} 32... Bf4+ {[%clk 0:00:32.5]} 33. Kg1 {[%clk
0:01:04.9]} 33... Re6 {[%clk 0:00:33.1]} 34. Kf2 {[%clk 0:01:02.6]} 34... Be3+
{[%clk 0:00:31.5]} 35. Kg3 {[%clk 0:01:03.1]} 35... Rg6+ {[%clk 0:00:31.4]} 36.
Kh2 {[%clk 0:01:03.5]} 36... Bf4+ {[%clk 0:00:30.9]} 37. Kg1 {[%clk 0:01:03.9]}
37... Bg3 {[%clk 0:00:31.1]} 38. Re2 {[%clk 0:00:52.4]} 38... a6 {[%clk
0:00:31.5]} 39. h5 {[%clk 0:00:49.6]} 39... Rb6 {[%clk 0:00:30.3]} 40. Rb3
{[%clk 0:00:32.2]} 40... Bh4 {[%clk 0:00:29.4]} 41. Re8+ {[%clk 0:00:25.6]}
41... Kf7 {[%clk 0:00:29.5]} 42. Rb8 {[%clk 0:00:26.1]} 42... Bf6 {[%clk
0:00:28.6]} 43. Kh2 {[%clk 0:00:16.7]} 43... Bxd4 {[%clk 0:00:28]} 44. g3 {[%clk
0:00:13.9]} 44... Be5 {[%clk 0:00:25.1]} 45. Rc8 {[%clk 0:00:12.9]} 45... axb5
{[%clk 0:00:24.1]} 46. axb5 {[%clk 0:00:12.7]} 46... Nd6 {[%clk 0:00:22.9]} 47.
Rc7+ {[%clk 0:00:13.2]} 47... Ke6 {[%clk 0:00:22.1]} 48. f4 {[%clk 0:00:14.1]}
48... Bf6 {[%clk 0:00:22.3]} 49. Re3+ {[%clk 0:00:13.9]} 49... Ne4 {[%clk
0:00:22.8]} 50. h6 {[%clk 0:00:11.7]} 50... gxh6 {[%clk 0:00:20.1]} 51. Rxh7
{[%clk 0:00:12.3]} 51... Rxb5 {[%clk 0:00:20]} 52. Rxh6 {[%clk 0:00:12.9]} 52...
Kf5 {[%clk 0:00:17.5]} 53. Kh3 {[%clk 0:00:08]} 53... Nf2+ {[%clk 0:00:09.6]}
54. Kg2 {[%clk 0:00:08.4]} 54... Ng4 {[%clk 0:00:10.2]} 55. Rxf6+ {[%clk
0:00:02.9]} 55... Kxf6 {[%clk 0:00:10.1]} 56. Re8 {[%clk 0:00:02.9]} 56... d4
{[%clk 0:00:09]} 57. Kf3 {[%clk 0:00:03]} 57... Ne3 {[%clk 0:00:09]} 58. Rd8
{[%clk 0:00:03.5]} 58... Nf5 {[%clk 0:00:09.1]} 59. g4 {[%clk 0:00:03.5]} 59...
Rb3+ {[%clk 0:00:09.8]} 60. Kf2 {[%clk 0:00:03.8]} 60... Ne3 {[%clk 0:00:08.8]}
61. Rf8+ {[%clk 0:00:03.6]} 61... Ke6 {[%clk 0:00:09]} 62. f5+ {[%clk
0:00:03.8]} 62... Ke5 {[%clk 0:00:08.7]} 63. Re8+ {[%clk 0:00:03.8]} 63... Kf4
{[%clk 0:00:09.2]} 64. f6 {[%clk 0:00:03.9]} 64... Rb2+ {[%clk 0:00:09.8]} 65.
Ke1 {[%clk 0:00:03.9]} 65... d3 {[%clk 0:00:10.5]} 66. Re4+ {[%clk 0:00:01.8]}
66... Kxe4 {[%clk 0:00:10.5]} 0-1